bitfinex/quotes_ETHUSD_20251218
["timestamp","ask_amount","ask_price","bid_price","bid_amount"]
[1766089387697,3.5508,2808.2,2806.1,1.6632]
[1766089387900,0.575,2808.1,2806.4,1.6632]
[1766089388195,0.41258,2808.1,2807.4,5.22508966]
[1766089388414,4.59018023,2808.5,2807.4,2.2382]
[1766089388620,0.46438023,2808.4,2807.4,5.8001233]
[1766089388923,1.7773,2808.1,2807.0,3.56243708]
[1766089389128,5.3291,2808.1,2807.3,0.575]
[1766089389914,3.5518,2808.1,2807.3,0.575]
[1766089390221,0.40161802,2808.0,2807.3,2.2382]
[1766089390391,0.001,2808.1,2807.3,5.80021709]
[1766089390596,0.001,2808.1,2807.3,2.2382]
[1766089390998,3.5508,2807.9,2807.2,0.575]
[1766089391193,3.5508,2807.8,2807.2,0.575]
[1766089391393,0.53281,2807.7,2807.2,0.575]
[1766089393546,0.001,2808.1,2807.3,1.80152141]
[1766089393898,3.3948,2808.5,2807.5,1.7659]
[1766089394126,0.575,2808.9,2807.7,1.7659]
[1766089394330,3.3948,2809.2,2807.9,2.171404]
[1766089394535,3.3948,2809.2,2807.8,0.03561507]
[1766089394536,0.001,2809.6,2808.2,0.405504]
[1766089394700,0.001,2809.6,2808.1,0.46438023]
[1766089394701,0.34058,2809.6,2808.5,1.7659]
[1766089394897,0.34058,2809.6,2808.6,2.3409]
[1766089395235,3.3958,2809.6,2808.5,0.575]
[1766089395551,0.001,2810.0,2808.9,1.7659]
[1766089395702,0.001,2810.0,2809.1,1.7659]
[1766089396098,0.001,2810.1,2809.3,1.7659]
[1766089396302,3.3948,2809.9,2809.2,0.575]
[1766089396540,1.7523,2809.9,2808.9,1.7659]
[1766089396700,0.001,2809.3,2809.0,0.575]
[1766089397330,3.3948,2809.5,2808.7,0.575]
[1766089398435,5.1471,2809.3,2808.5,0.575]
[1766089398601,3.90951,2809.2,2808.5,0.575]
[1766089399422,3.3948,2809.1,2808.5,0.575]
[1766089399625,3.3948,2809.1,2808.1,2.3409]
[1766089399825,3.3948,2809.1,2806.6,1.8731133]
[1766089399826,0.46438023,2808.5,2807.4,0.002]
[1766089400032,3.85918023,2808.3,2807.4,0.002]
[1766089400207,1.5244067,2808.4,2807.4,5.32990957]
[1766089400411,3.3948,2808.3,2807.4,0.002]
[1766089400611,3.3948,2808.2,2807.4,0.002]
[1766089400937,3.3948,2808.1,2807.4,0.002]
[1766089401437,3.3948,2808.1,2806.9,0.575]
[1766089401438,1.7523,2807.8,2806.9,0.575]
[1766089401730,8.16196327,2808.0,2806.4,0.575]
[1766089402034,8.16196327,2808.0,2806.5,0.41383584]
[1766089402035,1.7523,2807.6,2806.5,0.41383584]
[1766089402202,1.7523,2807.4,2806.4,0.575]
[1766089402401,3.3948,2807.2,2806.4,0.575]
[1766089402703,3.3948,2807.4,2806.4,0.575]
[1766089403224,3.3948,2807.4,2806.5,0.002]
[1766089403421,0.46438023,2807.8,2806.6,1.7659]
[1766089403422,3.9698,2807.7,2806.6,1.7659]
[1766089403603,4.67006766,2807.7,2806.6,1.7659]
[1766089404330,1.27526766,2807.7,2806.5,0.002]
[1766089404506,1.7523,2807.5,2806.5,0.002]
[1766089404834,3.3948,2807.3,2806.5,0.002]
[1766089405235,1.27526766,2807.7,2806.5,0.002]
[1766089405429,5.13444789,2807.7,2806.5,5.79150601]
[1766089405667,5.13444789,2807.7,2806.5,4.02560601]
[1766089405827,5.13444789,2807.7,2806.5,0.002]
[1766089405828,3.3948,2807.5,2806.5,0.002]
[1766089406006,1.16464789,2807.7,2806.6,1.7659]
[1766089406335,3.3948,2808.0,2806.6,1.7659]
[1766089406539,0.46438023,2807.9,2806.7,1.7659]
[1766089406711,0.46438023,2808.0,2806.7,1.7659]
[1766089406907,0.46438023,2807.8,2806.7,1.7659]
[1766089407322,0.46438023,2807.8,2806.8,5.32867611]
[1766089407528,0.46438023,2807.8,2806.9,1.10786761]
[1766089407805,3.3948,2807.7,2806.9,0.575]
[1766089408205,1.7523,2807.6,2806.5,0.002]
[1766089408437,0.575,2807.7,2806.8,1.7659]
[1766089409139,0.575,2807.7,2806.6,4.13799773]
[1766089409140,3.3948,2807.4,2806.6,0.575]
[1766089409363,3.90951,2807.4,2806.6,0.575]
[1766089409519,0.575,2807.7,2806.7,1.7659]
[1766089409724,1.03938023,2807.7,2806.7,1.7659]
[1766089410513,3.3948,2807.6,2806.7,1.7659]
[1766089411025,3.3948,2807.6,2806.5,0.002]
[1766089411208,3.3948,2807.4,2806.5,0.002]
[1766089411413,4.48451,2807.3,2806.5,0.002]
[1766089411616,8.04667237,2807.3,2806.5,0.002]
[1766089412215,3.3948,2807.1,2806.2,0.002]
[1766089412412,0.575,2807.1,2806.2,1.7679]
[1766089412650,1.06988902,2807.1,2806.2,1.7679]
[1766089413710,4.37389023,2807.3,2806.2,5.33143093]
[1766089413950,3.3948,2807.8,2806.4,0.405504]
[1766089414124,3.3948,2807.6,2806.5,2.3409]
[1766089414333,3.3948,2807.6,2806.5,0.575]
[1766089414541,3.3948,2807.6,2806.6,1.7659]
[1766089414734,3.96701,2807.6,2806.6,2.0405404]
[1766089415022,0.46538023,2807.9,2806.8,1.7659]
[1766089415229,0.46438023,2807.8,2806.8,1.7659]
[1766089415646,5.61148023,2807.7,2806.6,0.2746404]
[1766089415953,3.3948,2807.6,2806.6,2.0405404]
[1766089416355,3.3948,2807.3,2806.5,0.575]
[1766089416522,3.3948,2807.2,2806.5,0.575]
[1766089416938,3.3948,2807.6,2806.5,0.575]
[1766089417148,4.43418023,2807.5,2806.5,0.575]
[1766089417340,0.44341802,2807.4,2806.5,0.575]
[1766089417565,4.43418023,2807.5,2806.5,5.90398642]
[1766089417802,0.575,2807.8,2806.6,1.7659]
[1766089417959,0.46438023,2807.7,2806.6,1.7659]
[1766089418779,0.001,2807.9,2807.0,1.7659]
[1766089418952,3.3948,2807.8,2807.1,0.7921404]
[1766089419156,3.3948,2807.8,2807.1,0.575]
[1766089420188,4.13653408,2807.8,2806.5,3.56505144]
[1766089420391,3.3948,2807.6,2806.6,0.575]
[1766089420715,3.3948,2807.5,2806.6,0.575]
[1766089421240,3.3948,2807.3,2806.6,0.575]
[1766089421943,1.7523,2807.0,2806.5,0.002]
[1766089422188,5.36876802,2807.0,2806.5,0.002]
[1766089422393,3.3948,2806.9,2806.5,0.002]
[1766089423093,0.46438023,2807.2,2806.5,0.002]
[1766089424190,5.0764,2807.8,2806.7,1.7321]
[1766089424879,3.327,2807.8,2806.7,1.7321]
[1766089425080,3.327,2807.8,2806.9,0.405504]
[1766089425282,3.327,2807.8,2806.8,1.96281]
[1766089425886,0.001,2807.9,2807.0,1.7321]
[1766089426056,0.001,2807.8,2807.0,1.7321]
[1766089426750,0.001,2807.8,2806.8,0.23071]
[1766089426751,1.7494,2807.5,2806.8,0.23071]
[1766089426959,3.327,2807.7,2806.8,3.56273403]
[1766089427152,3.327,2807.7,2806.9,3.56264918]
[1766089427689,0.576,2807.8,2807.0,0.03562522]
[1766089427990,0.001,2807.8,2807.1,1.7321]
[1766089428218,0.001,2807.8,2807.2,0.52946172]
[1766089429772,0.001,2807.8,2807.2,2.26156172]
[1766089429973,3.327,2808.5,2807.3,1.7321]
[1766089430177,0.46438023,2808.4,2807.4,1.7321]
[1766089430373,3.902,2808.5,2807.5,0.575]
[1766089430707,3.328,2808.6,2807.6,1.96281]
[1766089431000,0.001,2808.6,2807.6,1.96281]
[1766089431318,0.001,2808.6,2807.8,1.7321]
[1766089431507,0.001,2808.6,2808.0,1.7321]
[1766089431665,0.001,2809.0,2808.0,1.7321]
[1766089431863,0.001,2809.1,2808.4,2.19648023]
[1766089432077,3.327,2809.6,2808.6,1.7321]
[1766089432277,0.001,2809.8,2808.7,1.7321]
[1766089432575,0.001,2809.8,2808.8,1.7321]
[1766089432795,0.001,2809.8,2808.9,2.3071]
[1766089432997,0.001,2809.8,2809.0,0.27714802]
[1766089433198,0.001,2809.6,2809.0,0.27714802]
[1766089433910,0.001,2809.6,2809.0,3.83705902]
[1766089434081,0.001,2809.8,2809.1,1.7321]
[1766089434600,0.001,2810.1,2809.1,1.7321]
[1766089434803,3.328,2810.1,2809.2,0.91291448]
[1766089434987,3.328,2810.1,2809.1,1.7321]
[1766089435815,0.001,2810.1,2809.1,1.7321]
[1766089436016,0.001,2810.1,2809.2,3.5597323]
[1766089436193,0.001,2810.1,2809.3,0.575]
[1766089436913,0.001,2810.2,2809.4,1.7321]
[1766089437117,3.328,2810.2,2809.4,1.7321]
[1766089437320,3.328,2810.2,2809.3,0.575]
[1766089437530,0.001,2810.2,2809.4,2.50154646]
[1766089437697,0.001,2810.4,2809.5,1.7321]
[1766089437896,0.001,2810.4,2809.6,0.405504]
[1766089438197,0.001,2810.8,2809.9,1.7321]
[1766089438414,0.001,2810.8,2809.8,7.11794432]
[1766089438415,0.001,2810.8,2810.1,1.7321]
[1766089438886,5.0774,2810.8,2810.0,0.575]
[1766089439391,1.7494,2810.6,2809.2,1.7321]
[1766089439596,3.327,2810.3,2809.5,0.575]
[1766089440685,3.327,2810.3,2808.7,3.56033361]
[1766089440686,1.7494,2810.2,2808.5,3.56261107]
[1766089440885,0.575,2810.1,2808.5,0.002]
[1766089441090,1.7494,2809.9,2808.5,0.002]
[1766089441309,3.51,2809.6,2808.5,0.002]
[1766089441645,1.6157,2809.7,2808.6,1.5883]
[1766089441646,4.59657,2809.5,2808.6,1.5883]
[1766089441941,3.51,2809.2,2808.5,0.002]
[1766089442115,5.1257,2809.2,2808.5,0.002]
[1766089442284,0.51257,2809.5,2808.5,0.576]
[1766089442490,5.6997,2809.8,2808.6,1.5883]
[1766089442720,4.084,2809.8,2808.8,1.5883]
[1766089442931,5.1257,2809.7,2808.7,0.79043]
[1766089443112,5.1257,2809.7,2808.7,2.37873]
[1766089444103,5.1257,2809.7,2808.7,2.84311023]
[1766089444320,5.1257,2809.7,2808.7,9.96380402]
[1766089444499,0.574,2809.8,2808.9,1.5883]
[1766089444694,0.46438023,2809.9,2808.9,1.5883]
[1766089444884,3.51,2809.9,2808.9,1.5883]
[1766089445083,0.08344171,2810.8,2808.9,0.46438023]
[1766089445084,3.51,2810.4,2808.9,0.46438023]
[1766089445424,1.6167,2810.5,2809.3,0.405504]
[1766089445425,0.001,2810.5,2809.3,0.405504]
[1766089445590,0.001,2810.5,2809.6,1.5883]
[1766089445790,0.001,2810.5,2809.8,1.5883]
[1766089446191,0.001,2810.5,2809.9,7.11769102]
[1766089446410,3.511,2810.8,2809.9,1.5883]
[1766089446715,0.001,2810.8,2809.9,1.5883]
[1766089448309,0.001,2810.8,2809.9,5.14708122]
[1766089448518,5.1257,2810.5,2809.4,3.55935869]
[1766089448702,5.1257,2810.6,2809.5,0.574]
[1766089448894,5.1257,2810.6,2809.9,3.55883635]
[1766089449316,5.1257,2810.6,2809.6,2.05268023]
[1766089449708,3.51,2810.6,2809.8,3.55886951]
[1766089449902,3.51,2810.6,2809.8,0.87062569]
[1766089451032,3.51,2810.6,2809.6,1.5883]
[1766089451326,3.51,2810.0,2809.1,0.574]
[1766089452026,3.51,2810.0,2809.1,4.13379849]
[1766089452226,3.51,2810.0,2809.2,3.55971068]
[1766089452398,5.1257,2810.7,2809.7,5.14730447]
[1766089452596,5.1257,2810.7,2809.8,7.63265722]
[1766089453126,5.1257,2810.7,2809.8,4.07368506]
[1766089453314,5.1257,2810.7,2809.8,0.51473045]
[1766089453516,5.1257,2810.7,2809.8,4.07369821]
[1766089453718,5.1257,2810.7,2809.8,0.51473045]
[1766089453924,5.1257,2810.7,2809.9,4.18245184]
[1766089454230,5.1257,2810.7,2809.9,0.62360633]
[1766089454231,3.51,2810.7,2809.9,0.62360633]
[1766089454929,3.51,2810.7,2809.9,4.18236922]
[1766089455111,0.001,2810.8,2810.0,1.6455]
[1766089455305,0.001,2810.8,2809.9,0.62360633]
[1766089455306,3.5071,2810.4,2809.9,0.62360633]
[1766089455627,3.5071,2810.7,2810.0,0.574]
[1766089455926,3.5071,2810.7,2809.8,0.002]
[1766089455927,3.5071,2810.2,2809.8,0.002]
[1766089456831,1.6076,2810.7,2809.8,0.002]
[1766089457017,0.001,2810.8,2809.8,0.002]
[1766089457018,3.5071,2810.5,2809.8,0.002]
[1766089457199,3.5071,2809.9,2809.1,0.574]
[1766089457530,3.5071,2809.7,2808.8,1.6455]
[1766089457842,3.5071,2809.6,2808.9,0.574]
[1766089460134,3.5071,2809.5,2808.6,0.576]
[1766089460335,3.5071,2809.4,2808.7,0.03560366]
[1766089460539,3.5071,2809.4,2808.7,4.14225397]
[1766089460842,3.5071,2809.4,2808.7,0.58194897]
[1766089461012,3.5071,2809.4,2808.8,3.56021176]
[1766089461209,3.5071,2809.4,2808.7,3.56036462]
[1766089462100,5.52800254,2809.7,2808.7,5.20586462]
[1766089462502,5.52800254,2809.7,2808.9,0.002]
[1766089462737,3.5071,2809.6,2808.9,0.002]
[1766089462960,1.6076,2809.4,2808.9,0.002]
[1766089463241,4.03862949,2809.6,2808.9,0.002]
[1766089463938,3.5071,2810.0,2809.0,0.574]
[1766089464155,3.5071,2810.0,2808.9,0.002]
[1766089464156,1.6076,2809.4,2808.6,0.002]
[1766089464437,3.5071,2808.4,2807.7,0.002]
[1766089464605,4.0811,2808.7,2807.7,0.002]
[1766089464943,1.6076,2808.5,2807.7,0.002]
[1766089465141,4.0811,2808.7,2807.9,3.56138039]
[1766089465429,3.5071,2808.7,2807.9,3.56138039]
[1766089465628,4.13379935,2809.2,2808.1,0.405504]
[1766089465629,3.5071,2809.1,2808.1,0.405504]
[1766089465801,3.5071,2809.1,2808.2,1.6455]
[1766089466237,3.5071,2809.1,2808.1,0.574]
[1766089466543,5.1147,2808.9,2808.1,0.574]
[1766089466850,3.5071,2808.4,2807.7,0.002]
[1766089468106,3.5071,2808.3,2807.7,0.002]
[1766089468708,3.5071,2808.1,2807.7,0.002]
[1766089468917,3.5071,2808.0,2807.5,0.002]
[1766089469125,3.5071,2807.9,2807.5,0.002]
[1766089469339,3.5071,2807.8,2807.4,0.002]
[1766089470723,5.1147,2807.8,2807.4,0.002]
[1766089471634,0.574,2808.3,2807.4,1.6475]
[1766089472939,4.0811,2808.3,2807.4,1.6475]
[1766089473286,1.6076,2809.0,2807.7,2.051004]
[1766089473452,4.0811,2809.0,2808.0,0.405504]
[1766089473745,4.0811,2809.4,2808.3,1.6455]
[1766089473947,0.001,2809.8,2808.2,2.051004]
[1766089474110,0.575,2809.8,2808.7,1.6455]
[1766089474310,3.5071,2809.5,2808.7,0.574]
[1766089474545,1.6076,2809.3,2808.5,0.574]
[1766089474846,3.5071,2809.2,2808.5,0.574]
[1766089475148,4.0821,2809.8,2808.9,3.56011249]
[1766089475438,4.0821,2809.8,2808.5,0.574]
[1766089475439,3.5071,2809.6,2808.6,0.405504]
[1766089475640,1.6076,2809.4,2808.5,0.46438023]
[1766089475840,3.5071,2809.3,2808.5,0.46438023]
[1766089476153,3.5071,2808.9,2806.7,3.56284957]
[1766089476453,3.5071,2808.7,2807.6,0.46438023]
[1766089476813,3.5071,2808.7,2807.5,2.10988023]
[1766089477013,3.5071,2808.7,2807.5,1.6455]
[1766089477212,3.5071,2808.6,2807.5,1.6455]
[1766089477452,3.5071,2808.4,2807.6,0.46438023]
[1766089477647,3.5071,2808.4,2807.6,0.46638023]
[1766089479351,3.5071,2809.1,2807.7,0.44112034]
[1766089479648,3.5071,2809.1,2807.8,1.6455]
[1766089479825,3.5071,2809.1,2807.9,0.7791004]
[1766089480034,3.5071,2809.1,2808.1,1.6455]
[1766089480268,3.5071,2809.6,2808.1,1.6455]
[1766089480559,3.5071,2809.6,2808.0,0.405504]
[1766089480560,4.0811,2809.6,2808.4,0.405504]
[1766089480729,0.574,2809.6,2808.7,1.6455]
[1766089481119,4.0811,2809.6,2808.7,1.6455]
[1766089481348,4.0811,2809.6,2808.7,5.20584444]
[1766089482426,4.0811,2809.6,2808.7,8.76621044]
[1766089482652,4.0811,2809.6,2808.7,6.12891446]
[1766089483023,4.0811,2809.6,2808.7,9.68928046]
[1766089483561,0.001,2809.8,2808.9,1.5033]
[1766089483761,0.001,2809.8,2809.1,1.5033]
[1766089483964,3.4267,2810.4,2809.3,1.5033]
[1766089484163,0.40007,2810.3,2809.3,1.71103]
[1766089484334,0.574,2810.5,2809.5,1.5033]
[1766089484540,1.6204,2810.6,2809.6,2.0773]
[1766089484865,3.4277,2810.8,2809.8,1.5033]
[1766089485459,3.4277,2810.8,2809.9,3.55884551]
[1766089485664,0.34287,2810.7,2809.9,0.46438023]
[1766089486963,3.76957,2810.7,2809.9,0.46438023]
[1766089487460,1.6204,2810.6,2809.7,0.46438023]
[1766089487631,1.6204,2810.4,2809.3,0.20773]
[1766089487841,3.4267,2810.2,2809.6,0.46438023]
[1766089489060,3.4267,2810.1,2809.4,0.574]
[1766089490130,3.4267,2810.1,2809.4,4.59780037]
[1766089490363,0.574,2810.3,2809.5,2.42746027]
[1766089490661,0.574,2810.3,2809.6,1.5033]
[1766089491071,3.4267,2810.5,2809.6,0.46438023]
[1766089491236,0.575,2810.9,2809.8,1.5033]
[1766089491562,3.4267,2810.7,2809.8,0.574]
[1766089491965,3.4267,2810.7,2809.8,5.63624177]
[1766089492175,3.4267,2810.7,2809.9,0.6506126]
[1766089492745,0.001,2811.0,2810.2,0.405504]
[1766089492984,0.001,2811.3,2810.4,1.5033]
[1766089493956,3.4277,2811.3,2810.4,1.5033]
[1766089494162,3.4277,2811.2,2810.4,1.5033]
[1766089494451,3.4277,2811.2,2810.4,5.06150194]
[1766089494645,3.4277,2811.2,2810.4,5.9808895]
[1766089494883,3.4277,2811.2,2810.4,0.91938756]
[1766089495093,3.4267,2811.0,2810.1,0.46438023]
[1766089495390,3.4267,2811.0,2809.9,1.11499283]
[1766089495391,3.4267,2810.6,2809.9,1.11499283]
[1766089495552,3.4267,2810.6,2809.9,4.67383196]
[1766089495890,3.4267,2810.6,2809.9,1.11499283]
[1766089496705,3.4267,2810.6,2809.9,0.6506126]
[1766089497404,3.4267,2810.6,2809.9,1.11499283]
[1766089497554,3.4267,2810.6,2809.6,3.55921578]
[1766089497555,3.4267,2810.4,2808.8,1.5033]
[1766089497755,3.4267,2810.1,2809.3,3.55954554]
[1766089497979,3.4267,2810.1,2809.4,0.46438023]
[1766089498175,3.4267,2810.1,2809.0,3.55987813]
[1766089498176,3.4267,2809.8,2809.0,3.55987813]
[1766089498489,0.574,2810.1,2809.3,3.55959776]
[1766089499150,0.574,2810.4,2809.9,0.002]
[1766089499980,3.4267,2810.3,2809.9,0.002]
[1766089500161,3.4267,2810.2,2809.9,0.002]
[1766089500577,0.574,2810.5,2809.9,0.002]
[1766089500789,3.4267,2810.3,2809.9,0.002]
[1766089502190,3.1065,2810.2,2809.3,1.5033]
[1766089502484,3.1065,2810.2,2808.6,4.02484361]
[1766089502485,3.1065,2810.0,2809.0,0.46438023]
[1766089502671,1.5226,2809.9,2808.9,1.53]
[1766089502872,0.574,2810.0,2808.7,0.407504]
[1766089502873,3.1065,2809.5,2808.8,3.56019666]
[1766089503199,3.1065,2809.5,2809.1,3.55978355]
[1766089503507,3.1065,2810.5,2809.5,1.53]
[1766089503851,3.1065,2810.5,2809.6,0.405504]
[1766089504193,3.1065,2810.5,2809.7,3.55909883]
[1766089504363,3.1075,2811.0,2810.0,1.53]
[1766089505689,3.55851613,2811.0,2809.7,0.405504]
[1766089505990,3.1065,2810.8,2809.6,3.55920616]
[1766089506172,1.5226,2810.6,2809.6,3.55920616]
[1766089506375,3.6805,2810.5,2809.6,7.11843167]
[1766089506566,3.6805,2810.5,2809.6,1.53]
[1766089507088,3.6805,2810.5,2809.6,0.56633812]
[1766089507591,0.574,2810.5,2809.7,1.53]
[1766089507764,3.1065,2810.4,2809.6,0.56633812]
[1766089508090,3.1065,2810.3,2809.6,0.56633812]
[1766089508257,3.1065,2810.3,2809.6,4.12556073]
[1766089508464,3.1065,2810.3,2809.7,0.4591941]
[1766089509396,1.5226,2810.1,2809.5,0.002]
[1766089509563,3.1065,2810.0,2809.5,0.002]
[1766089509761,3.1065,2810.0,2808.7,0.002]
[1766089509962,1.5226,2809.6,2808.7,3.56224998]
[1766089510162,5.2031,2809.6,2808.8,3.56022609]
[1766089510457,5.2031,2809.6,2808.8,0.71226393]
[1766089510663,5.2031,2809.6,2808.7,0.002]
[1766089510664,0.574,2809.6,2808.7,0.002]
[1766089510888,3.1065,2809.3,2808.7,0.002]
[1766089511063,3.1065,2809.3,2808.7,3.56235189]
[1766089511463,3.1065,2809.3,2808.8,3.56021058]
[1766089511707,0.574,2809.6,2808.8,3.56021058]
[1766089512001,4.20081,2809.6,2808.8,3.56021058]
[1766089512419,3.1065,2810.2,2809.0,1.53]
[1766089512563,3.2286,2810.6,2809.1,0.44110259]
[1766089512899,4.7697,2810.2,2809.2,0.979504]
[1766089513063,4.7697,2810.2,2809.3,0.2446204]
[1766089513254,0.574,2810.5,2809.3,0.2446204]
[1766089513255,3.2286,2810.1,2809.3,0.2446204]
[1766089513457,3.2286,2810.0,2809.3,0.8186204]
[1766089514283,3.2286,2810.0,2809.3,4.37812381]
[1766089514800,3.2286,2810.4,2809.5,0.405504]
[1766089514963,3.2296,2811.0,2809.8,1.4667]
[1766089515169,4.56983612,2811.0,2809.9,1.4667]
[1766089515365,4.56983612,2811.0,2810.1,1.4667]
[1766089516095,1.5411,2810.8,2809.9,1.4667]
[1766089516301,3.2286,2810.6,2810.0,0.574]
[1766089516466,3.55146,2810.6,2809.9,0.46438023]
[1766089516667,0.001,2810.5,2809.9,0.46438023]
[1766089516866,0.001,2810.5,2809.8,4.13290745]
[1766089516867,0.001,2810.5,2809.8,1.03838023]
[1766089517183,0.001,2810.5,2809.9,0.46438023]
[1766089517394,0.001,2810.5,2809.8,0.574]
[1766089517568,0.001,2810.5,2809.9,0.46438023]
[1766089517767,0.001,2810.5,2809.9,4.01853573]
[1766089518071,0.001,2810.5,2809.9,0.45972469]
[1766089518312,0.001,2810.5,2809.8,0.574]
[1766089518493,0.001,2810.5,2809.9,0.46438023]
[1766089518803,0.001,2810.5,2809.8,0.574]
[1766089519004,3.2286,2810.3,2809.8,0.574]
[1766089520071,3.2286,2810.3,2809.8,4.13296944]
[1766089520398,3.2286,2810.3,2809.8,0.574]
[1766089520562,0.001,2810.5,2809.9,1.4667]
[1766089521171,0.001,2810.5,2809.8,4.9021935]
[1766089521494,0.001,2810.5,2809.8,0.574]
[1766089522090,0.001,2810.5,2809.8,4.13296659]
[1766089522291,0.001,2810.5,2809.9,1.4667]
[1766089522688,3.2296,2810.5,2809.8,4.13296659]
[1766089523411,3.2296,2810.5,2809.3,0.2466204]
[1766089523412,3.2286,2810.2,2809.3,0.2466204]
[1766089523580,3.2286,2809.8,2809.3,0.002]
[1766089523906,1.5411,2809.2,2808.8,0.05]
[1766089524205,1.5411,2809.2,2808.6,1.4667]
[1766089524405,3.2286,2809.7,2808.7,0.407504]
[1766089524710,3.2286,2809.7,2809.0,3.55998576]
[1766089525013,0.574,2809.9,2809.1,0.85866937]
[1766089525683,3.8026,2809.9,2809.0,0.574]
[1766089526000,3.2286,2809.2,2808.7,0.002]
[1766089526215,1.5411,2809.3,2808.1,3.56311343]
[1766089526216,1.5411,2809.1,2808.1,0.002]
[1766089526371,3.2286,2808.9,2808.1,3.56312083]
[1766089526697,3.2286,2808.5,2807.6,0.002]
[1766089526873,3.2286,2808.3,2807.6,0.002]
[1766089527202,0.574,2808.8,2807.6,0.002]
[1766089527203,0.574,2808.8,2807.6,0.0376176]
[1766089527389,0.574,2808.8,2807.7,1.4667]
[1766089527596,1.001957,2808.8,2807.7,1.4667]
[1766089527903,3.2286,2808.9,2807.7,1.4667]
[1766089528089,3.2286,2808.9,2807.6,0.002]
[1766089528090,3.2286,2808.9,2807.8,0.405504]
[1766089528397,0.574,2809.1,2808.2,0.405504]
[1766089528705,0.574,2809.1,2808.4,0.86988423]
[1766089530498,3.8026,2809.1,2808.4,0.405504]
[1766089530703,3.8026,2809.1,2808.5,0.405504]
[1766089531298,3.2286,2808.9,2808.3,0.86988423]
[1766089532199,3.2286,2808.9,2808.3,4.43072198]
[1766089532400,3.2286,2808.9,2808.4,0.002]
[1766089532605,0.574,2809.1,2808.4,0.002]
[1766089533004,3.2286,2809.9,2808.6,0.405504]
[1766089533222,3.2286,2810.3,2808.9,1.4667]
[1766089533371,3.2286,2810.3,2808.8,0.405504]
[1766089533372,3.2286,2810.3,2809.4,1.4667]
[1766089533572,3.2286,2810.3,2809.5,0.44109752]
[1766089533779,0.574,2810.4,2808.6,1.4667]
[1766089534078,0.574,2810.4,2808.8,0.405504]
[1766089534079,3.2286,2810.2,2808.8,0.405504]
[1766089534273,4.7697,2810.2,2809.1,1.4667]
[1766089534475,4.7697,2810.2,2809.2,0.405504]
[1766089534878,4.7697,2810.2,2809.2,3.96515467]
[1766089535202,0.51830149,2810.1,2809.4,0.405504]
[1766089535403,0.574,2810.4,2809.4,1.872204]
[1766089535709,3.2286,2810.3,2809.4,1.872204]
[1766089536686,3.2286,2810.3,2809.6,0.405504]
[1766089537011,3.2286,2810.3,2809.6,0.86988423]
[1766089537381,0.001,2810.5,2809.7,3.55909883]
[1766089537581,0.001,2811.0,2810.0,1.4667]
[1766089537999,3.2296,2811.0,2810.0,1.4667]
[1766089538305,3.2296,2811.0,2810.1,0.405504]
[1766089538613,3.2286,2810.9,2810.1,0.405504]
[1766089538811,1.5411,2810.9,2809.8,4.41970699]
[1766089539023,4.7697,2810.7,2810.0,0.574]
[1766089539316,1.5411,2810.7,2809.9,0.79788058]
[1766089539518,0.001,2810.5,2809.9,0.405504]
[1766089539681,3.8036,2811.0,2810.1,0.405504]
[1766089540302,2.1161,2811.0,2810.1,0.405504]
[1766089540585,3.2286,2810.8,2810.0,0.574]
[1766089540788,3.2286,2810.5,2809.9,0.86988423]
[1766089541001,3.2286,2810.5,2809.8,0.86988423]
[1766089541229,1.5411,2810.5,2809.5,0.002]
[1766089541405,3.2286,2810.2,2809.5,0.002]
[1766089541788,0.574,2810.6,2809.5,0.002]
[1766089541997,3.2286,2810.6,2809.6,0.405504]
[1766089542298,0.574,2810.7,2810.0,0.405504]
[1766089543012,0.574,2810.7,2810.0,3.96417361]
[1766089543415,0.574,2810.7,2810.0,0.405504]
[1766089544412,0.574,2810.7,2810.0,0.9486067]
[1766089544921,0.574,2810.7,2810.0,4.5072838]
[1766089545290,0.001,2811.0,2810.3,1.4988]
[1766089545625,0.001,2811.3,2810.3,1.4988]
[1766089545831,0.001,2811.3,2810.5,1.4988]
[1766089545993,0.001,2811.3,2810.5,2.0728]
[1766089546429,0.001,2811.3,2810.6,0.03557959]
[1766089546725,0.001,2811.3,2810.7,0.405504]
[1766089546886,1.4954,2811.3,2810.4,0.65481063]
[1766089547091,0.001,2810.7,2810.5,0.86988423]
[1766089547404,0.001,2810.7,2810.4,0.7644304]
[1766089547699,0.001,2811.3,2810.4,1.03838023]
[1766089547903,3.2328,2811.1,2810.4,0.574]
[1766089548099,3.2328,2811.1,2810.4,1.03838023]
[1766089548306,3.2328,2811.1,2810.5,4.02240149]
[1766089548821,0.001,2811.3,2810.6,0.03557959]
[1766089549194,3.2338,2811.3,2810.6,0.03557959]
[1766089549500,3.2338,2811.3,2810.6,7.11582266]
[1766089549819,3.2338,2811.3,2810.6,0.46438023]
[1766089550120,3.76412,2811.3,2810.5,0.405504]
[1766089550693,3.2328,2811.2,2810.5,0.46438023]
[1766089551120,3.2328,2810.8,2810.1,0.574]
[1766089551293,3.2328,2810.7,2810.1,1.03838023]
[1766089551492,3.2328,2810.7,2809.8,1.4988]
[1766089551691,0.001,2811.3,2809.5,0.002]